fUST/lending_fUST_20250827
["ID","MTS","AMOUNT","RATE_DAILY","PERIOD"]
[381534064,1756266640903,-592.0,0.00023554,2]
[381534065,1756266640913,-1680.0,0.00023557,2]
[381534067,1756266640922,-258.55261943,0.00023614,2]
[381534069,1756266640932,-2000.0,0.00023616,2]
[381534070,1756266640941,-2000.0,0.00023616,2]
[381534071,1756266640951,-175.69282386,0.00023616,2]
[381534072,1756266640960,-2000.0,0.00023616,2]
[381534074,1756266640970,-324.52,0.00023681,2]
[381534076,1756266640980,-255.61880997,0.00023767,2]
[381534078,1756266640989,-350.0,0.00023767,2]
[381534080,1756266640999,-207.02248325,0.0002384,2]
[381534082,1756266641010,-2500.0,0.00023864,2]
[381534084,1756266641020,-963.60396499,0.00023868,2]
[381534086,1756266641031,-331.54512723,0.00023868,2]
[381534088,1756266641053,-1500.0,0.00023868,2]
[381534090,1756266641072,-360.0,0.00023991,2]
[381534092,1756266641087,-1000.0285716,0.00023999,2]
[381534093,1756266641097,-5173.28,0.00024,7]
[381534095,1756266641107,-583.23,0.00024043,3]
[381534097,1756266641116,-217.23771399,0.00024043,3]
[381534099,1756266641126,-160.0,0.00024043,3]
[381534101,1756266641135,-232.59867797,0.00024043,3]
[381534103,1756266641146,-160.0,0.00024043,3]
[381534105,1756266641160,-160.0,0.00024043,3]
[381534107,1756266641169,-216.14835892,0.00024043,3]
[381534108,1756266641179,-417.15472785,0.00024043,3]
[381534109,1756266641193,-160.0,0.00024043,3]
[381534110,1756266641203,-529.56067766,0.00024043,3]
[381534111,1756266641214,-425.44119842,0.00024043,3]
[381534112,1756266641224,-209.89621954,0.00024054,2]
[381534113,1756266641235,-7639.31050613,0.00024055,2]
[381534114,1756266641245,-161.88364495,0.0002406,5]
[381534115,1756266641254,-188.75393839,0.0002406,5]
[381534116,1756266641264,-1500.0,0.00024068,2]
[381534117,1756266641274,-1500.0,0.00024068,2]
[381534118,1756266641283,-1500.0,0.00024068,2]
[381534119,1756266641293,-500.0,0.00024073,2]
[381534120,1756266641305,-500.0,0.00024073,2]
[381534121,1756266641315,-500.0,0.00024073,2]
[381534122,1756266641324,-500.0,0.00024073,2]
[381534123,1756266641334,-506.73658747,0.00024073,2]
[381534124,1756266641343,-500.0,0.00024073,2]
[381534125,1756266641352,-422.31303599,0.00024073,2]
[381534126,1756266641362,-394.33363111,0.00024073,2]
[381534127,1756266641371,-500.0,0.00024073,2]
[381534128,1756266641380,-500.0,0.00024073,2]
[381534129,1756266641389,-634.31777391,0.00024073,2]
[381534130,1756266641399,-500.0,0.00024073,2]
[381534131,1756266641409,-500.0,0.00024073,2]
[381534132,1756266641418,-500.0,0.00024073,2]
[381534133,1756266641428,-2845.96024854,0.00024078,2]
[381534134,1756266641437,-68483.0,0.000241,7]
[381534135,1756266641447,-217.23771399,0.000241,7]
[381534136,1756266641456,-160.0,0.000241,7]
[381534137,1756266641465,-232.59867797,0.000241,7]
[381534138,1756266641475,-160.0,0.000241,7]
[381534139,1756266641484,-160.0,0.000241,7]
[381534140,1756266641494,-216.14835892,0.000241,7]
[381534141,1756266641503,-417.15472785,0.000241,7]
[381534142,1756266641513,-160.0,0.000241,7]
[381534143,1756266641522,-529.56067766,0.000241,7]
[381534144,1756266641532,-425.44119842,0.000241,7]
[381534145,1756266641542,-533.472965,0.00024124,2]
[381534146,1756266641553,-2500.0,0.00024164,2]
[381534147,1756266641562,-2564.20705671,0.00024164,2]
[381534148,1756266641572,-2500.0,0.00024164,2]
[381534149,1756266641581,-211.84076136,0.0002423,2]
[381534150,1756266641592,-450.0,0.00024315,2]
[381534151,1756266641602,-151.0,0.000244,6]
[381534152,1756266641612,-3000.0,0.00024412,2]
[381534153,1756266641622,-500.0,0.00024416,2]
[381534154,1756266641632,-151.0,0.000245,6]
[381534155,1756266641641,-460.0,0.00024539,2]
[381534156,1756266641651,-151.0,0.000246,9]
[381534157,1756266641660,-2000.0,0.00024616,2]
[381534158,1756266641669,-1006.86745737,0.00024616,2]
[381534159,1756266641678,-2000.0,0.00024616,2]
[381534160,1756266641687,-1000.0,0.00024621,2]
[381534161,1756266641696,-1000.0,0.00024621,2]
[381534162,1756266641705,-1000.0,0.00024621,2]
[381534163,1756266641717,-503.59239857,0.00024621,2]
[381534164,1756266641726,-1081.22516506,0.00024621,2]
[381534165,1756266641735,-508.84053916,0.00024621,2]
[381534166,1756266641745,-1000.0,0.00024621,2]
[381534167,1756266641756,-1000.0,0.00024621,2]
[381534168,1756266641765,-1000.0,0.00024621,2]
[381534169,1756266641774,-1000.0,0.00024621,2]
[381534170,1756266641785,-299.1299773,0.00024658,2]
[381534171,1756266641795,-151.0,0.000247,6]
[381534172,1756266641807,-3000.0,0.00024712,2]
[381534173,1756266641816,-3000.0,0.00024712,2]
[381534174,1756266641826,-151.0,0.000248,5]
[381534175,1756266641835,-30130.8593575,0.000248,2]
[381534176,1756266641845,-300.54022294,0.00024863,2]
[381534177,1756266641854,-504.77465991,0.00024873,2]
[381534178,1756266641863,-209.76805535,0.00024873,2]
[381534179,1756266641873,-500.0,0.00024873,2]
[381534180,1756266641882,-500.0,0.00024873,2]
[381534181,1756266641898,-500.0,0.00024873,2]
[381534182,1756266641912,-500.0,0.00024873,2]
[381534183,1756266641921,-173.98865229,0.0002489,2]
[381534184,1756266641931,-723.0,0.000249,2]
[381534185,1756266641940,-151.0,0.000249,9]
[381534186,1756266641950,-151.0,0.000249,7]
[381534187,1756266641958,-151.0,0.000249,7]
[381534188,1756266641967,-151.0,0.000249,7]
[381534189,1756266641978,-151.0,0.000249,7]
[381534190,1756266641987,-151.0,0.000249,7]
[381534191,1756266641996,-151.0,0.000249,7]
[381534192,1756266642006,-151.0,0.000249,7]
[381534193,1756266642015,-151.0,0.000249,7]
[381534194,1756266642024,-151.448791,0.000249,7]
[381534195,1756266642033,-261.77283,0.000249,7]
[381534196,1756266642043,-261.77283,0.000249,7]
[381534197,1756266642054,-261.77283,0.000249,7]
[381534198,1756266642235,-261.77283,0.000249,7]
[381534199,1756266642246,-151.776978,0.000249,7]
[381534200,1756266642255,-151.0,0.000249,7]
[381534201,1756266642265,-151.0,0.000249,7]
[381534202,1756266642274,-151.0,0.000249,7]
[381534203,1756266642283,-151.0,0.000249,7]
[381534204,1756266642292,-151.0,0.000249,7]
[381534205,1756266642303,-151.0,0.000249,7]
[381534206,1756266642313,-151.0,0.000249,7]
[381534207,1756266642322,-151.0,0.000249,7]
[381534208,1756266642331,-151.0,0.000249,7]
[381534209,1756266642340,-151.0,0.000249,7]
[381534210,1756266642349,-151.0,0.000249,7]
[381534211,1756266642358,-151.0,0.000249,7]
[381534212,1756266642368,-151.0,0.000249,7]
[381534213,1756266642377,-416739.856551,0.000249,2]
[381534214,1756266642386,-151.0,0.000249,7]
[381534215,1756266642395,-152.256123,0.000249,7]
[381534216,1756266642404,-151.0,0.000249,7]
[381534217,1756266642413,-359.393704,0.000249,7]
[381534218,1756266642425,-359.393704,0.000249,7]
[381534219,1756266642433,-359.393704,0.000249,7]
[381534220,1756266642443,-359.393704,0.000249,7]
[381534221,1756266642452,-151.0,0.000249,7]
[381534222,1756266642460,-151.0,0.000249,7]
[381534223,1756266642470,-157.445086,0.000249,7]
[381534224,1756266642480,-152.369809,0.000249,7]
[381534225,1756266642489,-151.0,0.000249,7]
[381534226,1756266642498,-151.0,0.000249,7]
[381534227,1756266642507,-151.0,0.000249,7]
[381534228,1756266642516,-188.386689,0.000249,7]
[381534229,1756266642528,-151.0,0.000249,7]
[381534230,1756266642538,-1216.324269,0.000249,7]
[381534231,1756266642548,-151.0,0.000249,7]
[381534232,1756266642563,-188.386689,0.000249,7]
[381534233,1756266642573,-1216.324269,0.000249,7]
[381534234,1756266642583,-188.386689,0.000249,7]
[381534235,1756266642592,-1216.324269,0.000249,7]
[381534236,1756266642601,-188.386689,0.000249,7]
[381534237,1756266642611,-151.0,0.000249,7]
[381534238,1756266642620,-151.0,0.000249,7]
[381534239,1756266642630,-151.241747,0.000249,7]
[381534240,1756266642639,-151.0,0.000249,7]
[381534241,1756266642649,-1216.324269,0.000249,7]
[381534242,1756266642659,-151.0,0.000249,7]
[381534243,1756266642668,-151.0,0.000249,7]
[381534244,1756266642678,-721.652939,0.000249,7]
[381534245,1756266642688,-721.652939,0.000249,7]
[381534246,1756266642698,-151.0,0.000249,7]
[381534247,1756266642707,-721.652939,0.000249,7]
[381534248,1756266642717,-721.652939,0.000249,7]
[381534249,1756266642727,-151.0,0.000249,7]
[381534250,1756266642736,-151.0,0.000249,7]
[381534251,1756266642746,-151.0,0.000249,7]
[381534252,1756266642755,-151.0,0.000249,7]
[381534253,1756266642764,-151.0,0.000249,7]
[381534254,1756266642774,-2845.96024854,0.00024904,2]
[381534255,1756266642783,-213.41,0.00024959,2]
[381534256,1756266642792,-213.41,0.00024959,2]
[381534257,1756266642802,-213.41,0.00024959,2]
[381534258,1756266642815,-213.41,0.00024959,2]
[381534259,1756266642825,-213.41,0.00024959,2]
[381534260,1756266642834,-213.41,0.00024959,2]
[381534261,1756266642843,-213.41,0.00024959,2]
[381534262,1756266642853,-159.98,0.00024959,2]
[381534263,1756266642862,-3500.0,0.0002496,2]
[381534264,1756266642871,-2152.20423982,0.00024969,2]
[381534265,1756266642881,-8608.81695928,0.00024979,2]
[381534266,1756266642890,-151.0,0.00024989,7]
[381534267,1756266642899,-398.228296,0.00024989,7]
[381534268,1756266642908,-398.228296,0.00024989,7]
[381534269,1756266642917,-398.228296,0.00024989,7]
[381534270,1756266642927,-398.228296,0.00024989,7]
[381534271,1756266642936,-208651.64204562,0.00024989,2]
[381534272,1756266642946,-151.0,0.0002499,7]
[381534273,1756266642956,-240.478836,0.0002499,7]
[381534274,1756266642967,-151.0,0.0002499,7]
[381534275,1756266642977,-187.972458,0.0002499,7]
[381534276,1756266642987,-187.972458,0.0002499,7]
[381534277,1756266642997,-187.972458,0.0002499,7]
[381534278,1756266643006,-187.972458,0.0002499,7]
[381534279,1756266643015,-747.76232398,0.00024999,2]
[381534280,1756266643026,-250.0,0.00025004,2]
[381534281,1756266643035,-1000.0,0.00025004,2]
[381534282,1756266643044,-1000.0,0.00025004,2]
[381534283,1756266643057,-1000.0,0.00025004,2]
[381534284,1756266643066,-151.0,0.00025004,2]
[381534285,1756266643075,-682.58272364,0.00025004,2]
[381534286,1756266643084,-151.0,0.00025004,2]
[381534287,1756266643093,-151.0,0.00025004,2]
[381534288,1756266643103,-151.0,0.00025004,2]
[381534289,1756266643112,-151.0,0.00025004,2]
[381534290,1756266643121,-151.0,0.00025004,2]
[381534291,1756266643130,-222.89018699,0.00025004,2]
[381534292,1756266643138,-151.0,0.00025004,2]
[381534293,1756266643150,-151.0,0.00025004,2]
[381534294,1756266643161,-151.0,0.00025004,2]
[381534295,1756266643170,-273.77286421,0.00025004,2]
[381534296,1756266643179,-151.0,0.00025004,2]
[381534297,1756266643189,-151.0,0.00025004,2]
[381534298,1756266643198,-151.0,0.00025004,2]
[381534299,1756266643207,-151.0,0.00025004,2]
[381534300,1756266643216,-201.93286099,0.00025004,2]
[381534301,1756266643226,-151.0,0.00025004,2]
[381534302,1756266643235,-151.0,0.00025004,2]
[381534303,1756266643245,-151.0,0.00025004,2]
[381534304,1756266643254,-151.0,0.00025004,2]
[381534305,1756266643263,-151.0,0.00025004,2]
[381534306,1756266643272,-151.0,0.00025004,2]
[381534307,1756266643281,-300.0,0.00025004,2]
[381534308,1756266643291,-151.0,0.00025004,2]
[381534309,1756266643301,-500.0,0.00025004,2]
[381534310,1756266643314,-300.0,0.00025004,2]
[381534311,1756266643324,-300.0,0.00025004,2]
[381534312,1756266643335,-500.0,0.00025004,2]
[381534313,1756266643344,-300.0,0.00025004,2]
[381534314,1756266643353,-500.0,0.00025004,2]
[381534315,1756266643362,-300.0,0.00025004,2]
[381534316,1756266643371,-500.0,0.00025004,2]
[381534317,1756266643379,-500.0,0.00025004,2]
[381534318,1756266643388,-360.60142007,0.00025004,2]
[381534319,1756266643398,-500.0,0.00025004,2]
[381534320,1756266643407,-500.0,0.00025004,2]
[381534321,1756266643415,-500.0,0.00025004,2]
[381534322,1756266643424,-500.0,0.00025004,2]
[381534323,1756266643433,-500.0,0.00025004,2]
[381534324,1756266643442,-500.0,0.00025004,2]
[381534325,1756266643451,-500.0,0.00025004,2]
[381534327,1756266643460,-160.0,0.00025059,2]
[381534328,1756266643469,-501.50644243,0.00025073,2]
[381534329,1756266643478,-150.0,0.00025073,2]
[381534330,1756266643487,-1871.06712213,0.0002508,2]
[381534331,1756266643496,-560.0,0.00025087,2]
[381534332,1756266643505,-2152.20423982,0.0002509,2]
[381534333,1756266643514,-13418.09,0.000251,2]
[381534334,1756266643523,-2500.0,0.00025164,2]
[381534335,1756266643532,-770.21154911,0.00025164,2]
[381534336,1756266643541,-500.0,0.00025168,2]
[381534337,1756266643551,-565.38357863,0.00025168,2]
[381534338,1756266643563,-1006.72355118,0.00025168,2]
[381534339,1756266643573,-503.35674842,0.00025168,2]
[381534340,1756266643583,-1500.0,0.00025168,2]
[381534341,1756266643592,-150.0,0.0002524,2]
[381534343,1756266643601,-510.71548486,0.0002526,2]
[381534345,1756266643611,-1000.0,0.0002526,2]
[381534347,1756266643620,-1000.0,0.00025305,2]
[381534349,1756266643630,-1000.0,0.00025305,2]
[381534351,1756266643640,-1000.0,0.00025305,2]
[381534353,1756266643650,-1000.0,0.00025305,2]
[381534355,1756266643659,-1000.0,0.00025305,2]
[381534357,1756266643668,-1000.0,0.00025313,2]
[381534359,1756266643677,-1000.0,0.00025313,2]
[381534361,1756266643687,-1000.0,0.00025322,2]
[381534363,1756266643696,-1000.0,0.00025322,2]
[381534365,1756266643705,-1000.0,0.00025322,2]
[381534367,1756266643714,-1000.0,0.00025323,2]
[381534369,1756266643724,-1000.0,0.00025323,2]
[381534372,1756266643734,-1000.0,0.00025325,2]
[381534374,1756266643744,-153.50078829,0.00025327,2]
[381534376,1756266643754,-1000.0,0.00025334,2]
[381534378,1756266643763,-1000.0,0.00025334,2]
[381534379,1756266643772,-1000.0,0.00025344,2]
[381534380,1756266643781,-1000.0,0.00025353,2]
[381534381,1756266643791,-1000.0,0.00025397,2]
[381534382,1756266643800,-1000.0,0.00025397,2]
[381534383,1756266643812,-796.76190217,0.00025397,2]
[381534384,1756266643821,-151.0,0.00025413,7]
[381534385,1756266643830,-151.0,0.00025413,7]
[381534386,1756266643839,-151.0,0.00025413,7]
[381534387,1756266643847,-151.0,0.00025413,7]
[381534388,1756266643856,-151.0,0.00025413,7]
[381534389,1756266643865,-151.0,0.00025413,7]
[381534390,1756266643875,-151.0,0.00025413,7]
[381534391,1756266643884,-151.0,0.00025413,7]
[381534392,1756266643893,-151.0,0.00025413,7]
[381534393,1756266643903,-151.0,0.00025413,7]
[381534394,1756266643913,-151.0,0.00025413,7]
[381534396,1756266643922,-151.0,0.00025413,7]
[381534397,1756266643931,-184.027892,0.00025413,7]
[381534399,1756266643940,-151.0,0.00025413,7]
[381534401,1756266643949,-151.0,0.00025413,7]
[381534403,1756266643959,-151.0,0.00025413,7]
[381534405,1756266643969,-171.593238,0.00025413,7]
[381534406,1756266643978,-171.593238,0.00025413,7]
[381534407,1756266643988,-171.593238,0.00025413,7]
[381534408,1756266644000,-171.593238,0.00025413,7]
[381534410,1756266644011,-151.0,0.00025413,7]
[381534411,1756266644020,-151.0,0.00025413,7]
[381534412,1756266644030,-151.0,0.00025413,7]
[381534414,1756266644039,-151.0,0.00025413,7]
[381534415,1756266644048,-151.0,0.00025413,7]
[381534416,1756266644059,-151.0,0.00025413,7]
[381534418,1756266644068,-151.0,0.00025413,7]
[381534420,1756266644078,-151.0,0.00025413,7]
[381534421,1756266644087,-201.65768,0.00025413,7]
[381534422,1756266644097,-151.0,0.00025413,7]
[381534423,1756266644106,-151.0,0.00025413,7]
[381534424,1756266644116,-261.77283,0.00025413,7]
[381534425,1756266644125,-261.77283,0.00025413,7]
[381534426,1756266644135,-261.77283,0.00025413,7]
[381534427,1756266644147,-261.77283,0.00025413,7]
[381534428,1756266644162,-151.0,0.00025413,7]
[381534429,1756266644171,-151.0,0.00025413,7]
[381534430,1756266644181,-151.0,0.00025413,7]
[381534431,1756266644190,-151.0,0.00025413,7]
[381534432,1756266644202,-151.0,0.00025413,7]
[381534433,1756266644211,-246.1913,0.00025413,7]
[381534434,1756266644221,-151.0,0.00025413,7]
[381534435,1756266644231,-151.0,0.00025413,7]
[381534436,1756266644241,-151.0,0.00025413,7]
[381534437,1756266644250,-151.0,0.00025413,7]
[381534438,1756266644260,-288.94404,0.00025413,7]
[381534439,1756266644270,-151.0,0.00025413,7]
[381534440,1756266644280,-151.748066,0.00025413,7]
[381534441,1756266644289,-359.393704,0.00025413,7]
[381534442,1756266644299,-359.393704,0.00025413,7]
[381534443,1756266644314,-359.393704,0.00025413,7]
[381534444,1756266644325,-359.393704,0.00025413,7]
[381534445,1756266644334,-151.0,0.00025413,7]
[381534446,1756266644344,-151.0,0.00025413,7]
[381534447,1756266644353,-194.554724,0.00025413,7]
[381534448,1756266644363,-151.0,0.00025413,7]
[381534449,1756266644372,-188.386689,0.00025413,7]
[381534450,1756266644381,-1216.324269,0.00025413,7]
[381534451,1756266644390,-151.0,0.00025413,7]
[381534452,1756266644401,-151.0,0.00025413,7]
[381534453,1756266644411,-188.386689,0.00025413,7]
[381534454,1756266644420,-1216.324269,0.00025413,7]
[381534455,1756266644430,-188.386689,0.00025413,7]
[381534456,1756266644440,-1216.324269,0.00025413,7]
[381534457,1756266644449,-188.386689,0.00025413,7]
[381534458,1756266644459,-151.0,0.00025413,7]
[381534459,1756266644467,-151.0,0.00025413,7]
[381534460,1756266644477,-1216.324269,0.00025413,7]
[381534461,1756266644486,-151.0,0.00025413,7]
[381534462,1756266644496,-151.0,0.00025413,7]
[381534463,1756266644505,-721.652939,0.00025413,7]
[381534464,1756266644514,-721.652939,0.00025413,7]
[381534465,1756266644524,-151.0,0.00025413,7]
[381534466,1756266644534,-721.652939,0.00025413,7]
[381534467,1756266644543,-721.652939,0.00025413,7]
[381534468,1756266644554,-151.0,0.00025413,7]
[381534469,1756266644563,-151.0,0.00025413,7]
[381534470,1756266644573,-151.0,0.00025413,7]
[381534471,1756266644582,-151.826704,0.00025413,7]
[381534472,1756266644591,-160.0,0.0002542,7]
[381534473,1756266644601,-232.59867797,0.0002542,7]
[381534474,1756266644610,-1000.0,0.00025421,2]
[381534475,1756266644620,-1000.0,0.00025421,2]
[381534476,1756266644629,-1000.0,0.00025421,2]
[381534477,1756266644638,-393.0,0.00025441,2]
[381534478,1756266644647,-587.0,0.00025441,2]
[381534479,1756266644657,-587.0,0.00025441,2]
[381534480,1756266644666,-587.0,0.00025441,2]
[381534481,1756266644675,-587.0,0.00025441,2]
[381534482,1756266644684,-160.0,0.000255,3]
[381534483,1756266644693,-216.14835892,0.000255,3]
[381534484,1756266644702,-417.15472785,0.000255,7]
[381534485,1756266644711,-160.0,0.000255,7]
[381534486,1756266644720,-425.44119842,0.000255,7]
[381534487,1756266644730,-4000.0,0.00025508,2]
[381534488,1756266644739,-184.95486452,0.00025582,5]
[381534489,1756266644748,-5173.28,0.000256,7]
[381534490,1756266644757,-152.553054,0.00025602,7]
[381534491,1756266644766,-151.0,0.00025602,7]
[381534492,1756266644776,-151.498068,0.00025602,7]
[381534493,1756266644790,-19302.31252593,0.00025602,2]
[381534494,1756266644806,-2351.0,0.00025607,2]
[381534495,1756266644815,-352.98345367,0.00025621,2]
[381534496,1756266644825,-660.0,0.00025635,2]
[381534497,1756266644835,-2351.0,0.00025681,2]
[381534498,1756266644844,-68483.0,0.000257,7]
[381534499,1756266644854,-151.0,0.000257,7]
[381534500,1756266644863,-398.228296,0.000257,7]
[381534501,1756266644873,-398.228296,0.000257,7]
[381534502,1756266644882,-398.228296,0.000257,7]
[381534503,1756266644892,-398.228296,0.000257,7]
[381534504,1756266644901,-160.0,0.000257,7]
[381534505,1756266644910,-217.23771399,0.000257,7]
[381534506,1756266644919,-2741.84246405,0.00025712,2]
[381534507,1756266644929,-2000.0,0.00025716,2]
[381534508,1756266644938,-500.0,0.00025873,2]
[381534509,1756266644947,-254.476,0.00025951,11]
[381534510,1756266644957,-172.72186731,0.00025951,11]
[381534511,1756266644966,-501.83638041,0.00025968,2]
[381534512,1756266644975,-1500.0,0.00025968,2]
[381534513,1756266644984,-169.58929109,0.00025968,2]
[381534514,1756266644993,-357.0,0.00026027,2]
[381534515,1756266645002,-357.0,0.00026051,7]
[381534516,1756266645011,-3794.97853164,0.00026056,2]
[381534517,1756266645022,-583.22,0.0002616,3]
[381534518,1756266645032,-760.0,0.00026183,2]
[381534519,1756266645041,-357.0,0.00026231,2]
[381534520,1756266645050,-2500.0,0.00026264,2]
[381534521,1756266645064,-830.0,0.00026272,2]
[381534522,1756266645073,-459.46733535,0.00026308,2]
[381534523,1756266645083,-209.40437684,0.00026373,2]
[381534524,1756266645092,-357.0,0.00026413,2]
[381534525,1756266645101,-500.0,0.00026421,2]
[381534526,1756266645111,-217.23771399,0.0002644,2]
[381534527,1756266645120,-160.0,0.0002644,2]
[381534528,1756266645129,-232.59867797,0.0002644,2]
[381534529,1756266645138,-12707.75045307,0.00026448,2]
[381534530,1756266645147,-425.44119842,0.00026487,2]
[381534531,1756266645159,-160.0,0.00026487,2]
[381534532,1756266645168,-160.0,0.00026487,2]
[381534533,1756266645178,-160.0,0.00026487,2]
[381534534,1756266645187,-845.298898,0.00026487,2]
[381534535,1756266645197,-433.15074929,0.00026516,2]
[381534536,1756266645206,-2001.86724761,0.00026516,2]
[381534537,1756266645216,-357.0,0.00026524,7]
[381534538,1756266645224,-160.0,0.00026563,2]
[381534539,1756266645237,-160.0,0.00026563,2]
[381534540,1756266645246,-357.0,0.00026599,7]
[381534541,1756266645255,-158.21657506,0.0002661,2]
[381534542,1756266645264,-613.38915,0.00026621,2]
[381534543,1756266645273,-552.340579,0.00026676,2]
[381534544,1756266645282,-160.0,0.00026714,3]
[381534545,1756266645292,-830.0,0.00026719,7]
[381534546,1756266645301,-860.0,0.00026731,2]
[381534547,1756266645313,-357.0,0.00026776,2]
[381534548,1756266645323,-357.0,0.00026786,2]
[381534549,1756266645331,-1871.06712213,0.00026806,6]
[381534550,1756266645340,-151.0,0.00026812,7]
[381534551,1756266645350,-187.972458,0.00026812,7]
[381534552,1756266645359,-187.972458,0.00026812,7]
[381534553,1756266645369,-187.972458,0.00026812,7]
[381534554,1756266645378,-187.972458,0.00026812,7]
[381534555,1756266645388,-516.31478172,0.00026812,2]
[381534556,1756266645397,-13418.09,0.000269,2]
[381534557,1756266645406,-357.0,0.00026938,2]
[381534558,1756266645415,-846.51568238,0.00026948,2]
[381534559,1756266645425,-633.0,0.00027096,2]
[381534560,1756266645435,-357.0,0.00027163,2]
[381534561,1756266645444,-5173.28,0.000272,7]
[381534562,1756266645453,-4957.11484996,0.00027268,2]
[381534563,1756266645463,-960.0,0.00027279,2]
[381534564,1756266645472,-68483.0,0.000273,7]
[381534565,1756266645481,-357.0,0.00027335,2]
[381534566,1756266645491,-633.0,0.00027384,7]
[381534567,1756266645499,-1000.0,0.00027397,2]
[381534568,1756266645510,-6137.21,0.000274,7]
[381534569,1756266645519,-357.0,0.0002743,7]
[381534570,1756266645528,-533.472965,0.00027548,2]
[381534571,1756266645538,-160.0,0.00027629,4]
[381534572,1756266645547,-823.0,0.0002766,2]
[381534573,1756266645559,-823.0,0.0002766,2]
[381534574,1756266645568,-702.0,0.0002766,2]
[381534575,1756266645578,-539.0,0.0002766,2]
[381534576,1756266645587,-324.52,0.00027674,7]
[381534577,1756266645596,-160.0,0.00027702,2]
[381534578,1756266645606,-217.15233878,0.00027742,2]
[381534579,1756266645616,-357.0,0.00027746,2]
[381534589,1756266645795,-503.91498901,0.00027766,10]
[381534590,1756266645808,-529.4218694,0.00027822,2]
[381534591,1756266645818,-417.15472785,0.00027822,2]
[381534592,1756266645827,-160.0,0.00027822,2]
[381534593,1756266645836,-216.09257821,0.00027822,2]
[381534594,1756266645846,-1060.0,0.00027827,2]
[381534595,1756266645855,-3292.0,0.00027835,2]
[381534596,1756266645864,-357.0,0.00027873,7]
[381534597,1756266645874,-357.0,0.00027889,2]
[381534598,1756266645884,-974.0,0.00027919,2]
[381534599,1756266645893,-2157.0,0.00027919,2]
[381534600,1756266645903,-638.0,0.00027919,2]
[381534601,1756266645914,-357.0,0.00027952,2]
[381534602,1756266645924,-153.0,0.00027959,2]
[381534603,1756266645934,-153.0,0.00027959,2]
[381534604,1756266645943,-153.0,0.00027959,2]
[381534605,1756266645954,-153.0,0.00027959,2]
[381534606,1756266645964,-153.0,0.00027959,2]
[381534607,1756266645974,-153.0,0.00027959,2]
[381534608,1756266645983,-153.0,0.00027963,2]
[381534609,1756266645993,-153.0,0.00027963,2]
[381534610,1756266646002,-359.393704,0.00027963,7]
[381534611,1756266646011,-359.393704,0.00027963,7]
[381534612,1756266646020,-359.393704,0.00027963,7]
[381534613,1756266646030,-359.393704,0.00027963,7]
[381534614,1756266646039,-151.428142,0.00027963,7]
[381534615,1756266646048,-151.0,0.00027963,7]
[381534616,1756266646061,-417.15472785,0.00028,10]
[381534617,1756266646070,-357.0,0.00028009,2]
[381534618,1756266646079,-3292.0,0.00028052,2]
[381534619,1756266646089,-357.0,0.00028065,2]
[381534620,1756266646098,-151.0,0.00028065,7]